[Event "Early-Titled-Tuesday-Blitz-April-02-2024"]
[Site "Chess.com"]
[Date "2024.04.02"]
[Round "9"]
[White "viktorgen2021"]
[Black "Ordekalog"]
[Result "0-1"]
[WhiteElo "2494"]
[BlackElo "2616"]
[TimeControl "180+1"]
[EndTime "9:42:52 PDT"]
[Termination "Ordekalog won by resignation"]

1. d4 {[%clk 0:02:56.5]} 1... d5 {[%clk 0:02:58.7]} 2. Nf3 {[%clk 0:02:55.2]}
2... e6 {[%clk 0:02:57.6]} 3. g3 {[%clk 0:02:54.2]} 3... c5 {[%clk 0:02:56.5]}
4. c4 {[%clk 0:02:53.6]} 4... Nc6 {[%clk 0:02:55.8]} 5. cxd5 {[%clk 0:02:49.7]}
5... exd5 {[%clk 0:02:55.8]} 6. Nc3 {[%clk 0:02:48.8]} 6... Nf6 {[%clk
0:02:55.6]} 7. Bg2 {[%clk 0:02:44.9]} 7... Be7 {[%clk 0:02:54.7]} 8. O-O {[%clk
0:02:44.8]} 8... O-O {[%clk 0:02:54.6]} 9. Bg5 {[%clk 0:02:45.3]} 9... cxd4
{[%clk 0:02:54.1]} 10. Nxd4 {[%clk 0:02:44.8]} 10... h6 {[%clk 0:02:54.1]} 11.
Bxf6 {[%clk 0:02:27.2]} 11... Bxf6 {[%clk 0:02:53.3]} 12. Nxc6 {[%clk
0:02:27.8]} 12... bxc6 {[%clk 0:02:52.8]} 13. Rc1 {[%clk 0:02:28.5]} 13... Rb8
{[%clk 0:02:48.8]} 14. b3 {[%clk 0:02:27]} 14... Re8 {[%clk 0:02:34.8]} 15. Re1
{[%clk 0:02:23.3]} 15... Bg5 {[%clk 0:02:06.4]} 16. Rc2 {[%clk 0:02:03.8]} 16...
Bf5 {[%clk 0:02:05.4]} 17. e4 {[%clk 0:01:53.8]} 17... Bg6 {[%clk 0:01:55.6]}
18. f4 {[%clk 0:01:41.2]} 18... Bf6 {[%clk 0:01:54.3]} 19. f5 {[%clk 0:01:27.5]}
19... Bh7 {[%clk 0:01:53.7]} 20. exd5 {[%clk 0:01:22.4]} 20... Qb6+ {[%clk
0:01:36.6]} 21. Kh1 {[%clk 0:01:15.9]} 21... Bxf5 {[%clk 0:01:34.4]} 22. Na4
{[%clk 0:01:06]} 22... Bxc2 {[%clk 0:01:26]} 0-1

[Event "Early-Titled-Tuesday-Blitz-April-02-2024"]
[Site "Chess.com"]
[Date "2024.04.02"]
[Round "9"]
[White "jcmesafischer"]
[Black "IshviAggarwal"]
[Result "1-0"]
[WhiteElo "2382"]
[BlackElo "2140"]
[TimeControl "180+1"]
[EndTime "9:42:53 PDT"]
[Termination "jcmesafischer won by resignation"]

1. e4 {[%clk 0:02:47.4]} 1... e5 {[%clk 0:02:58.4]} 2. Nf3 {[%clk 0:02:46.7]}
2... Nc6 {[%clk 0:02:58.8]} 3. Bb5 {[%clk 0:02:45.2]} 3... a6 {[%clk 0:02:59.2]}
4. Ba4 {[%clk 0:02:09.7]} 4... Nf6 {[%clk 0:02:56.6]} 5. O-O {[%clk 0:01:14.4]}
5... Be7 {[%clk 0:02:54.4]} 6. Re1 {[%clk 0:01:01.9]} 6... b5 {[%clk 0:02:53.4]}
7. Bb3 {[%clk 0:01:01.2]} 7... d6 {[%clk 0:02:54.3]} 8. c3 {[%clk 0:01:00.3]}
8... O-O {[%clk 0:02:53.5]} 9. d4 {[%clk 0:00:59.8]} 9... exd4 {[%clk
0:02:52.2]} 10. cxd4 {[%clk 0:01:00.7]} 10... Bg4 {[%clk 0:02:52.6]} 11. Be3
{[%clk 0:00:41.3]} 11... d5 {[%clk 0:02:52.1]} 12. e5 {[%clk 0:00:37.6]} 12...
Ne4 {[%clk 0:02:50.7]} 13. Nc3 {[%clk 0:00:21.3]} 13... Bb4 {[%clk 0:02:47.7]}
14. Nxd5 {[%clk 0:00:16.2]} 14... Bxe1 {[%clk 0:02:39.3]} 15. Qxe1 {[%clk
0:00:17.1]} 15... Bxf3 {[%clk 0:02:39.8]} 16. gxf3 {[%clk 0:00:16.9]} 16... Ng5
{[%clk 0:02:40]} 17. Kg2 {[%clk 0:00:16.5]} 17... Qd7 {[%clk 0:02:37.9]} 18.
Bxg5 {[%clk 0:00:12.5]} 18... Nxd4 {[%clk 0:02:38.5]} 19. Qe4 {[%clk 0:00:10.9]}
19... Nxb3 {[%clk 0:02:30.4]} 20. axb3 {[%clk 0:00:11.8]} 20... Rfe8 {[%clk
0:02:20.9]} 21. Rd1 {[%clk 0:00:11.2]} 21... Qc8 {[%clk 0:02:11]} 22. Ne7+
{[%clk 0:00:11.1]} 22... Rxe7 {[%clk 0:02:10.4]} 23. Bxe7 {[%clk 0:00:12]} 23...
Qe6 {[%clk 0:02:10.5]} 24. Rd8+ {[%clk 0:00:11.9]} 24... Rxd8 {[%clk 0:02:09.7]}
25. Bxd8 {[%clk 0:00:12.8]} 25... Qe8 {[%clk 0:02:08.8]} 26. Bxc7 {[%clk
0:00:12.9]} 1-0

[Event "Early-Titled-Tuesday-Blitz-April-02-2024"]
[Site "Chess.com"]
[Date "2024.04.02"]
[Round "9"]
[White "ritanovikova"]
[Black "PapaieDudu"]
[Result "0-1"]
[WhiteElo "2148"]
[BlackElo "2384"]
[TimeControl "180+1"]
[EndTime "9:43:03 PDT"]
[Termination "PapaieDudu won on time"]

1. e4 {[%clk 0:02:56.9]} 1... c5 {[%clk 0:03:00.2]} 2. Nc3 {[%clk 0:02:56.8]}
2... a6 {[%clk 0:02:59.9]} 3. d3 {[%clk 0:02:57.7]} 3... Nc6 {[%clk 0:02:59.7]}
4. g3 {[%clk 0:02:57.5]} 4... e6 {[%clk 0:03:00.1]} 5. Bg2 {[%clk 0:02:57.9]}
5... Nge7 {[%clk 0:03:00.4]} 6. Nge2 {[%clk 0:02:57.7]} 6... d5 {[%clk
0:03:01.1]} 7. exd5 {[%clk 0:02:54.3]} 7... Nxd5 {[%clk 0:03:00]} 8. O-O {[%clk
0:02:50.7]} 8... Be7 {[%clk 0:02:59.9]} 9. Bd2 {[%clk 0:02:46.8]} 9... Nxc3
{[%clk 0:02:56.8]} 10. Bxc3 {[%clk 0:02:45.8]} 10... O-O {[%clk 0:02:56.9]} 11.
Nf4 {[%clk 0:02:44.6]} 11... Rb8 {[%clk 0:02:52.4]} 12. Nh5 {[%clk 0:02:34.3]}
12... Nd4 {[%clk 0:02:50.4]} 13. Nf4 {[%clk 0:01:43.1]} 13... b5 {[%clk
0:02:48.3]} 14. b3 {[%clk 0:01:38.8]} 14... Bb7 {[%clk 0:02:47.4]} 15. Bxb7
{[%clk 0:01:26.5]} 15... Rxb7 {[%clk 0:02:48.1]} 16. Bxd4 {[%clk 0:01:16.5]}
16... cxd4 {[%clk 0:02:45.8]} 17. Qf3 {[%clk 0:01:14.4]} 17... Rc7 {[%clk
0:02:44.6]} 18. Rac1 {[%clk 0:01:11.3]} 18... Ba3 {[%clk 0:02:42.5]} 19. Rce1
{[%clk 0:01:00.1]} 19... Rxc2 {[%clk 0:02:40.4]} 20. Qg4 {[%clk 0:00:56.7]}
20... Rxa2 {[%clk 0:02:20.7]} 21. Nh5 {[%clk 0:00:43.5]} 21... g6 {[%clk
0:02:20.6]} 22. Nf4 {[%clk 0:00:32.8]} 22... Bb4 {[%clk 0:02:14.1]} 23. Re4
{[%clk 0:00:31.6]} 23... f5 {[%clk 0:02:13.5]} 24. Nxe6 {[%clk 0:00:07.9]} 24...
fxg4 {[%clk 0:02:13.7]} 25. Nxd8 {[%clk 0:00:07.6]} 25... Rxd8 {[%clk
0:02:14.4]} 26. Rxg4 {[%clk 0:00:07.6]} 26... Bc3 {[%clk 0:02:14.4]} 27. h4
{[%clk 0:00:03.2]} 27... Rd5 {[%clk 0:02:13.4]} 0-1

[Event "Early-Titled-Tuesday-Blitz-April-02-2024"]
[Site "Chess.com"]
[Date "2024.04.02"]
[Round "9"]
[White "ExchangeAB"]
[Black "Casper"]
[Result "1-0"]
[WhiteElo "2482"]
[BlackElo "2486"]
[TimeControl "180+1"]
[EndTime "9:43:08 PDT"]
[Termination "ExchangeAB won by resignation"]

1. d4 {[%clk 0:03:00.6]} 1... f5 {[%clk 0:02:58.6]} 2. Bg5 {[%clk 0:03:00.2]}
2... Nf6 {[%clk 0:02:58.6]} 3. Bxf6 {[%clk 0:03:00.2]} 3... exf6 {[%clk
0:02:59.5]} 4. e3 {[%clk 0:02:58.3]} 4... c5 {[%clk 0:02:59.8]} 5. dxc5 {[%clk
0:02:53.2]} 5... Bxc5 {[%clk 0:03:00.7]} 6. Bc4 {[%clk 0:02:48.2]} 6... Nc6
{[%clk 0:02:59.8]} 7. Nc3 {[%clk 0:02:46.7]} 7... d6 {[%clk 0:02:56.5]} 8. Nge2
{[%clk 0:02:43.1]} 8... Bd7 {[%clk 0:02:47.9]} 9. O-O {[%clk 0:02:41]} 9... Qc8
{[%clk 0:02:36.5]} 10. Nb5 {[%clk 0:02:36.2]} 10... Ne5 {[%clk 0:02:33.1]} 11.
Bd3 {[%clk 0:02:12.5]} 11... Nxd3 {[%clk 0:02:30.5]} 12. Qxd3 {[%clk 0:02:13.4]}
12... O-O {[%clk 0:02:30.9]} 13. Nxd6 {[%clk 0:02:02]} 13... Qc6 {[%clk
0:02:31.6]} 14. Nxf5 {[%clk 0:01:53.6]} 14... Rad8 {[%clk 0:02:32.2]} 15. Nfd4
{[%clk 0:01:53.4]} 15... Qb6 {[%clk 0:02:27.4]} 16. Qb3+ {[%clk 0:01:48.9]}
16... Qxb3 {[%clk 0:02:25.1]} 17. axb3 {[%clk 0:01:49.8]} 17... Bg4 {[%clk
0:02:22.4]} 18. f3 {[%clk 0:01:47.3]} 18... Bd7 {[%clk 0:02:21.9]} 19. c3 {[%clk
0:01:46]} 19... Rfe8 {[%clk 0:02:22.1]} 20. Kf2 {[%clk 0:01:45.4]} 20... Bb5
{[%clk 0:02:22.5]} 21. c4 {[%clk 0:01:42.3]} 21... Bd7 {[%clk 0:02:20.9]} 22.
Rfe1 {[%clk 0:01:41.3]} 22... g5 {[%clk 0:02:17.7]} 23. Nc3 {[%clk 0:01:40.9]}
23... a6 {[%clk 0:02:15.3]} 24. Ne4 {[%clk 0:01:38.6]} 24... Be7 {[%clk
0:02:14.5]} 25. Rad1 {[%clk 0:01:37.7]} 25... f5 {[%clk 0:02:14.9]} 26. Nc3
{[%clk 0:01:36.6]} 26... Bd6 {[%clk 0:02:11.2]} 27. g3 {[%clk 0:01:35.4]} 27...
Kf7 {[%clk 0:02:10.2]} 28. Nd5 {[%clk 0:01:34.5]} 28... Be5 {[%clk 0:02:07.2]}
29. Nb6 {[%clk 0:01:31.2]} 29... h5 {[%clk 0:02:03.5]} 30. Nxd7 {[%clk
0:01:29.2]} 30... Rxd7 {[%clk 0:02:01.8]} 31. Nxf5 {[%clk 0:01:29.2]} 31... Rxd1
{[%clk 0:02:02.5]} 32. Rxd1 {[%clk 0:01:28.9]} 32... Kf6 {[%clk 0:02:02.1]} 33.
Nd4 {[%clk 0:01:27.8]} 33... h4 {[%clk 0:02:03]} 34. f4 {[%clk 0:01:26.9]} 34...
hxg3+ {[%clk 0:02:02]} 35. hxg3 {[%clk 0:01:26.4]} 35... gxf4 {[%clk 0:02:02.4]}
36. gxf4 {[%clk 0:01:26.4]} 36... Bxd4 {[%clk 0:02:01.1]} 37. Rxd4 {[%clk
0:01:25.9]} 37... Rh8 {[%clk 0:02:02]} 38. Kf3 {[%clk 0:01:22.6]} 38... Rh2
{[%clk 0:02:02.2]} 39. Rd6+ {[%clk 0:01:22.8]} 39... Ke7 {[%clk 0:02:01.3]} 40.
Rb6 {[%clk 0:01:23.7]} 40... Rxb2 {[%clk 0:02:00.5]} 41. Rxb7+ {[%clk
0:01:24.1]} 41... Kd6 {[%clk 0:02:00.8]} 42. Rb6+ {[%clk 0:01:24.4]} 42... Kc5
{[%clk 0:02:00.9]} 43. Rxa6 {[%clk 0:01:24.7]} 43... Rxb3 {[%clk 0:02:01.6]} 44.
Ra8 {[%clk 0:01:21.9]} 44... Kxc4 {[%clk 0:02:01.6]} 45. Rd8 {[%clk 0:01:21.9]}
45... Kc5 {[%clk 0:02:00.3]} 46. Ke4 {[%clk 0:01:21.2]} 46... Rb7 {[%clk
0:01:59.5]} 47. f5 {[%clk 0:01:20.3]} 47... Re7+ {[%clk 0:02:00.1]} 48. Kf4
{[%clk 0:01:20.2]} 48... Kc6 {[%clk 0:02:00]} 49. e4 {[%clk 0:01:20.2]} 49...
Kc7 {[%clk 0:02:00.3]} 50. Rd1 {[%clk 0:01:20.4]} 50... Rh7 {[%clk 0:02:00.6]}
51. f6 {[%clk 0:01:19.8]} 51... Rh2 {[%clk 0:02:01.5]} 52. Kf5 {[%clk
0:01:19.6]} 52... Rf2+ {[%clk 0:02:02]} 53. Ke6 {[%clk 0:01:19.9]} 53... Rg2
{[%clk 0:02:02.8]} 54. e5 {[%clk 0:01:19.9]} 54... Rf2 {[%clk 0:02:03.6]} 55. f7
{[%clk 0:01:19.8]} 55... Rg2 {[%clk 0:02:04.2]} 56. Ke7 {[%clk 0:01:19.9]} 56...
Rg7 {[%clk 0:02:03.6]} 57. e6 {[%clk 0:01:19.7]} 57... Rh7 {[%clk 0:02:03.3]}
58. Ke8 {[%clk 0:01:19.8]} 58... Kc8 {[%clk 0:02:02.9]} 59. e7 {[%clk
0:01:18.3]} 1-0

[Event "Early-Titled-Tuesday-Blitz-April-02-2024"]
[Site "Chess.com"]
[Date "2024.04.02"]
[Round "9"]
[White "Alexchess1984"]
[Black "gorgeous1083"]
[Result "1-0"]
[WhiteElo "2720"]
[BlackElo "2232"]
[TimeControl "180+1"]
[EndTime "9:43:15 PDT"]
[Termination "Alexchess1984 won by resignation"]

1. e4 {[%clk 0:03:00.9]} 1... e6 {[%clk 0:02:59.7]} 2. d3 {[%clk 0:03:00]} 2...
d5 {[%clk 0:03:00.2]} 3. Nd2 {[%clk 0:03:00.4]} 3... c5 {[%clk 0:02:59.3]} 4.
Ngf3 {[%clk 0:03:00.2]} 4... Nc6 {[%clk 0:02:59.9]} 5. g3 {[%clk 0:03:00.2]}
5... Nf6 {[%clk 0:02:58.5]} 6. Bg2 {[%clk 0:03:00.2]} 6... Be7 {[%clk
0:02:58.8]} 7. O-O {[%clk 0:02:59.9]} 7... O-O {[%clk 0:02:58.9]} 8. Re1 {[%clk
0:02:59.3]} 8... b6 {[%clk 0:02:58.5]} 9. e5 {[%clk 0:02:58.4]} 9... Nd7 {[%clk
0:02:57.8]} 10. Nf1 {[%clk 0:02:59]} 10... Bb7 {[%clk 0:02:57.3]} 11. h4 {[%clk
0:02:57.6]} 11... Rc8 {[%clk 0:02:55.7]} 12. Bf4 {[%clk 0:02:56.8]} 12... b5
{[%clk 0:02:47.9]} 13. h5 {[%clk 0:02:56]} 13... h6 {[%clk 0:02:32.9]} 14. N1h2
{[%clk 0:02:55.2]} 14... Nd4 {[%clk 0:02:18.6]} 15. Qd2 {[%clk 0:02:52.4]} 15...
Kh7 {[%clk 0:02:10.7]} 16. Ng4 {[%clk 0:02:51.1]} 16... Nf5 {[%clk 0:02:06.9]}
17. Ngh2 {[%clk 0:02:41.9]} 17... d4 {[%clk 0:02:05.5]} 18. g4 {[%clk
0:02:36.9]} 18... Ne3 {[%clk 0:01:37.8]} 19. fxe3 {[%clk 0:02:32.8]} 19... dxe3
{[%clk 0:01:38.1]} 20. Qxe3 {[%clk 0:02:30.3]} 20... c4 {[%clk 0:01:37.1]} 21.
d4 {[%clk 0:02:28.5]} 21... Nb6 {[%clk 0:01:33.9]} 22. c3 {[%clk 0:02:26.1]}
22... b4 {[%clk 0:01:33.6]} 23. g5 {[%clk 0:02:18.2]} 23... Nd5 {[%clk
0:01:32.2]} 24. Qe4+ {[%clk 0:02:17.1]} 24... g6 {[%clk 0:01:10.4]} 25. hxg6+
{[%clk 0:02:14]} 25... fxg6 {[%clk 0:01:09.8]} 26. Bd2 {[%clk 0:02:13.5]} 26...
bxc3 {[%clk 0:00:56.4]} 27. bxc3 {[%clk 0:02:10.8]} 27... h5 {[%clk 0:00:50.1]}
28. Qh4 {[%clk 0:02:08.5]} 28... Rf5 {[%clk 0:00:38.3]} 29. Ng4 {[%clk
0:02:06.6]} 29... Kg7 {[%clk 0:00:35.2]} 30. Nf6 {[%clk 0:02:04.8]} 30... Nxf6
{[%clk 0:00:25.3]} 31. gxf6+ {[%clk 0:02:04]} 31... Bxf6 {[%clk 0:00:25.1]} 32.
exf6+ {[%clk 0:02:04]} 32... Qxf6 {[%clk 0:00:24.7]} 33. Qxf6+ {[%clk
0:02:03.7]} 33... Kxf6 {[%clk 0:00:24]} 34. Ne5 {[%clk 0:02:02]} 34... Rg5
{[%clk 0:00:22.1]} 35. Bxg5+ {[%clk 0:02:01.1]} 1-0

[Event "Early-Titled-Tuesday-Blitz-April-02-2024"]
[Site "Chess.com"]
[Date "2024.04.02"]
[Round "9"]
[White "Likvidator228"]
[Black "secrethawk1"]
[Result "1-0"]
[WhiteElo "2559"]
[BlackElo "2424"]
[TimeControl "180+1"]
[EndTime "9:43:16 PDT"]
[Termination "Likvidator228 won by resignation"]

1. d4 {[%clk 0:03:00.6]} 1... Nf6 {[%clk 0:02:59.8]} 2. Bf4 {[%clk 0:02:59.4]}
2... e6 {[%clk 0:03:00.7]} 3. e3 {[%clk 0:02:59.6]} 3... d5 {[%clk 0:03:00.8]}
4. c4 {[%clk 0:02:59.2]} 4... Bd6 {[%clk 0:03:00.8]} 5. Bxd6 {[%clk 0:02:58.1]}
5... Qxd6 {[%clk 0:03:01.4]} 6. Nc3 {[%clk 0:02:58.7]} 6... O-O {[%clk
0:03:01.4]} 7. Nf3 {[%clk 0:02:58.8]} 7... c6 {[%clk 0:03:01.6]} 8. Rc1 {[%clk
0:02:58.6]} 8... Nbd7 {[%clk 0:03:00.9]} 9. a3 {[%clk 0:02:57.2]} 9... a5 {[%clk
0:02:57.4]} 10. cxd5 {[%clk 0:02:56.6]} 10... exd5 {[%clk 0:02:56.1]} 11. Bd3
{[%clk 0:02:56.7]} 11... b5 {[%clk 0:02:55.4]} 12. O-O {[%clk 0:02:56]} 12...
Re8 {[%clk 0:02:54.5]} 13. h3 {[%clk 0:02:54]} 13... b4 {[%clk 0:02:53.1]} 14.
axb4 {[%clk 0:02:40.5]} 14... axb4 {[%clk 0:02:52.1]} 15. Na4 {[%clk 0:02:40.9]}
15... Ne4 {[%clk 0:02:49.8]} 16. b3 {[%clk 0:02:32.3]} 16... Ba6 {[%clk
0:02:47.3]} 17. Qc2 {[%clk 0:02:27.1]} 17... Bxd3 {[%clk 0:02:43.3]} 18. Qxd3
{[%clk 0:02:28]} 18... c5 {[%clk 0:02:42]} 19. dxc5 {[%clk 0:02:25.7]} 19...
Ndxc5 {[%clk 0:02:42.2]} 20. Nxc5 {[%clk 0:02:26.4]} 20... Nxc5 {[%clk
0:02:41.2]} 21. Qb1 {[%clk 0:02:21.3]} 21... Ne4 {[%clk 0:02:40.4]} 22. Nd4
{[%clk 0:02:16.3]} 22... Nc3 {[%clk 0:02:39]} 23. Qd3 {[%clk 0:02:14.6]} 23...
Ne4 {[%clk 0:02:38.6]} 24. Rc6 {[%clk 0:02:07.2]} 24... Qd7 {[%clk 0:02:35.1]}
25. Rb6 {[%clk 0:01:49.9]} 25... Qe7 {[%clk 0:02:27.2]} 26. Qb5 {[%clk 0:01:25]}
26... Qh4 {[%clk 0:01:50]} 27. Qxd5 {[%clk 0:01:18.4]} 27... Nc3 {[%clk
0:01:45]} 28. Qf3 {[%clk 0:01:14.2]} 28... Rab8 {[%clk 0:01:31.9]} 29. Rxb8
{[%clk 0:01:10.4]} 29... Rxb8 {[%clk 0:01:32.8]} 30. Ra1 {[%clk 0:01:10.4]}
30... Qe7 {[%clk 0:01:28.8]} 31. Nc6 {[%clk 0:01:05.5]} 31... Ne2+ {[%clk
0:01:20.5]} 32. Qxe2 {[%clk 0:01:02.6]} 32... Qf6 {[%clk 0:01:19.1]} 33. Rc1
{[%clk 0:00:57.4]} 33... Rc8 {[%clk 0:01:16.2]} 34. Ne7+ {[%clk 0:00:55.9]} 1-0

[Event "Early-Titled-Tuesday-Blitz-April-02-2024"]
[Site "Chess.com"]
[Date "2024.04.02"]
[Round "9"]
[White "AccioChess"]
[Black "margarita_2703"]
[Result "1-0"]
[WhiteElo "2453"]
[BlackElo "2316"]
[TimeControl "180+1"]
[EndTime "9:43:24 PDT"]
[Termination "AccioChess won by checkmate"]

1. e4 {[%clk 0:03:00.9]} 1... a6 {[%clk 0:02:52.7]} 2. d4 {[%clk 0:02:59.9]}
2... e6 {[%clk 0:02:49.9]} 3. f4 {[%clk 0:02:57]} 3... d5 {[%clk 0:02:47.2]} 4.
e5 {[%clk 0:02:56.5]} 4... c5 {[%clk 0:02:47.4]} 5. c3 {[%clk 0:02:55.4]} 5...
Bd7 {[%clk 0:02:44.3]} 6. Nf3 {[%clk 0:02:54.7]} 6... Bb5 {[%clk 0:02:44.5]} 7.
Bxb5+ {[%clk 0:02:54.3]} 7... axb5 {[%clk 0:02:45.4]} 8. O-O {[%clk 0:02:54.4]}
8... f5 {[%clk 0:02:43.5]} 9. dxc5 {[%clk 0:02:43.3]} 9... Bxc5+ {[%clk
0:02:40.4]} 10. Kh1 {[%clk 0:02:44.2]} 10... Qb6 {[%clk 0:02:40.6]} 11. b4
{[%clk 0:02:38.1]} 11... Bf8 {[%clk 0:02:38.8]} 12. Nbd2 {[%clk 0:02:38.3]}
12... Nc6 {[%clk 0:02:38.6]} 13. Nb3 {[%clk 0:02:38.1]} 13... g6 {[%clk
0:02:36.3]} 14. Nbd4 {[%clk 0:02:37.8]} 14... Kf7 {[%clk 0:02:34.6]} 15. Qd3
{[%clk 0:02:32.1]} 15... Nxd4 {[%clk 0:02:24.8]} 16. Nxd4 {[%clk 0:02:32]} 16...
Ne7 {[%clk 0:02:23.4]} 17. Nxb5 {[%clk 0:02:30]} 17... Nc6 {[%clk 0:01:52.9]}
18. Be3 {[%clk 0:02:28.1]} 18... Qd8 {[%clk 0:01:36.7]} 19. a4 {[%clk
0:02:27.4]} 19... Be7 {[%clk 0:01:10.2]} 20. a5 {[%clk 0:02:26]} 20... h6 {[%clk
0:00:37.3]} 21. Bb6 {[%clk 0:02:13]} 21... Qd7 {[%clk 0:00:22.6]} 22. Rg1 {[%clk
0:02:10.7]} 22... g5 {[%clk 0:00:22.5]} 23. g4 {[%clk 0:02:01.4]} 23... fxg4
{[%clk 0:00:21.2]} 24. Raf1 {[%clk 0:01:55.9]} 24... Kg7 {[%clk 0:00:18.2]} 25.
fxg5 {[%clk 0:01:48.5]} 25... hxg5 {[%clk 0:00:19.1]} 26. Rxg4 {[%clk
0:01:46.9]} 26... Nxe5 {[%clk 0:00:18.7]} 27. Bd4 {[%clk 0:01:46.5]} 27... Bf6
{[%clk 0:00:17.3]} 28. Bxe5 {[%clk 0:01:45.8]} 28... Raf8 {[%clk 0:00:12.9]} 29.
Rxg5+ {[%clk 0:01:45.3]} 29... Kh6 {[%clk 0:00:13.1]} 30. Qh3+ {[%clk 0:01:42]}
30... Kxg5 {[%clk 0:00:12.9]} 31. Rg1# {[%clk 0:01:41.9]} 1-0

[Event "Early-Titled-Tuesday-Blitz-April-02-2024"]
[Site "Chess.com"]
[Date "2024.04.02"]
[Round "9"]
[White "tk22h"]
[Black "JaackCamel"]
[Result "1-0"]
[WhiteElo "2404"]
[BlackElo "2205"]
[TimeControl "180+1"]
[EndTime "9:43:26 PDT"]
[Termination "tk22h won by checkmate"]

1. c4 {[%clk 0:02:59.7]} 1... e6 {[%clk 0:02:55.7]} 2. Nf3 {[%clk 0:02:58.3]}
2... d5 {[%clk 0:02:54.7]} 3. d4 {[%clk 0:02:58.9]} 3... c6 {[%clk 0:02:54.2]}
4. Qc2 {[%clk 0:02:57.7]} 4... dxc4 {[%clk 0:02:52.1]} 5. e4 {[%clk 0:02:55.8]}
5... b5 {[%clk 0:02:50]} 6. b3 {[%clk 0:02:55.8]} 6... cxb3 {[%clk 0:02:43.7]}
7. axb3 {[%clk 0:02:56.7]} 7... Bb7 {[%clk 0:02:33.9]} 8. Bd3 {[%clk 0:02:55.7]}
8... Nf6 {[%clk 0:02:28.3]} 9. O-O {[%clk 0:02:55.1]} 9... Be7 {[%clk
0:02:20.5]} 10. Bb2 {[%clk 0:02:53.9]} 10... h6 {[%clk 0:02:19.9]} 11. Nbd2
{[%clk 0:02:50.5]} 11... Nbd7 {[%clk 0:02:17.4]} 12. Rfd1 {[%clk 0:02:41.3]}
12... a6 {[%clk 0:02:16.8]} 13. Rac1 {[%clk 0:02:40.9]} 13... c5 {[%clk
0:02:07.7]} 14. d5 {[%clk 0:02:36]} 14... O-O {[%clk 0:02:02.3]} 15. dxe6 {[%clk
0:02:34.4]} 15... fxe6 {[%clk 0:02:00.5]} 16. e5 {[%clk 0:02:33.7]} 16... Nd5
{[%clk 0:01:51.3]} 17. Ne4 {[%clk 0:02:30.2]} 17... Nb4 {[%clk 0:01:43.8]} 18.
Qe2 {[%clk 0:02:30.1]} 18... Qb6 {[%clk 0:01:25.2]} 19. Bb1 {[%clk 0:02:28.5]}
19... Rad8 {[%clk 0:01:22.7]} 20. Ng3 {[%clk 0:02:07]} 20... Bxf3 {[%clk
0:01:14.4]} 21. gxf3 {[%clk 0:02:06.2]} 21... Nd5 {[%clk 0:01:11.4]} 22. Qe4
{[%clk 0:02:04.5]} 22... N7f6 {[%clk 0:00:49.9]} 23. exf6 {[%clk 0:02:03.1]}
23... Nxf6 {[%clk 0:00:47.4]} 24. Bxf6 {[%clk 0:01:58.8]} 24... Rxf6 {[%clk
0:00:44.8]} 25. Rxd8+ {[%clk 0:01:57.6]} 25... Bxd8 {[%clk 0:00:36.9]} 26. Rd1
{[%clk 0:01:48.9]} 26... Bc7 {[%clk 0:00:33.2]} 27. Nh5 {[%clk 0:01:48.2]} 27...
Rf5 {[%clk 0:00:29.8]} 28. Rd7 {[%clk 0:01:39]} 28... Rg5+ {[%clk 0:00:16.1]}
29. Kf1 {[%clk 0:01:38.3]} 29... Be5 {[%clk 0:00:14.4]} 30. Qh7+ {[%clk
0:01:35.8]} 30... Kf8 {[%clk 0:00:12.6]} 31. Qh8# {[%clk 0:01:36.1]} 1-0

[Event "Early-Titled-Tuesday-Blitz-April-02-2024"]
[Site "Chess.com"]
[Date "2024.04.02"]
[Round "9"]
[White "GMAneta"]
[Black "AnaKuchava"]
[Result "1-0"]
[WhiteElo "2491"]
[BlackElo "2181"]
[TimeControl "180+1"]
[EndTime "9:43:40 PDT"]
[Termination "GMAneta won on time"]

1. d4 {[%clk 0:02:59.2]} 1... d5 {[%clk 0:02:58.3]} 2. c4 {[%clk 0:02:58.8]}
2... e6 {[%clk 0:02:57.8]} 3. Nc3 {[%clk 0:02:57.9]} 3... Be7 {[%clk 0:02:57]}
4. Nf3 {[%clk 0:02:53.4]} 4... Nf6 {[%clk 0:02:55.6]} 5. cxd5 {[%clk 0:02:52.1]}
5... exd5 {[%clk 0:02:55.3]} 6. Bg5 {[%clk 0:02:51.5]} 6... c6 {[%clk
0:02:54.9]} 7. Qc2 {[%clk 0:02:51.1]} 7... g6 {[%clk 0:02:45.5]} 8. e4 {[%clk
0:02:50.8]} 8... dxe4 {[%clk 0:02:36.4]} 9. Bxf6 {[%clk 0:02:50]} 9... Bxf6
{[%clk 0:02:35.5]} 10. Qxe4+ {[%clk 0:02:49.9]} 10... Qe7 {[%clk 0:02:34.7]} 11.
Bc4 {[%clk 0:02:47.3]} 11... Bf5 {[%clk 0:02:29]} 12. Qe3 {[%clk 0:02:46.9]}
12... O-O {[%clk 0:02:17.9]} 13. O-O {[%clk 0:02:45.7]} 13... Qxe3 {[%clk
0:02:08.6]} 14. fxe3 {[%clk 0:02:44.2]} 14... Kg7 {[%clk 0:02:08.6]} 15. e4
{[%clk 0:02:38.3]} 15... Bg4 {[%clk 0:02:08.2]} 16. e5 {[%clk 0:02:38.3]} 16...
Be7 {[%clk 0:01:59.7]} 17. h3 {[%clk 0:02:37.8]} 17... Bxf3 {[%clk 0:01:31.4]}
18. Rxf3 {[%clk 0:02:36.8]} 18... Nd7 {[%clk 0:01:32.1]} 19. Raf1 {[%clk
0:02:31.8]} 19... f5 {[%clk 0:01:31.6]} 20. exf6+ {[%clk 0:02:26.1]} 20... Nxf6
{[%clk 0:01:29.7]} 21. Ne4 {[%clk 0:02:23.8]} 21... Nxe4 {[%clk 0:01:27.7]} 22.
Rf7+ {[%clk 0:02:23.9]} 22... Rxf7 {[%clk 0:01:28]} 23. Rxf7+ {[%clk 0:02:24]}
23... Kh8 {[%clk 0:01:09.6]} 24. Rxe7 {[%clk 0:02:23.2]} 24... Nd6 {[%clk
0:01:09]} 25. Bb3 {[%clk 0:02:23]} 25... Rd8 {[%clk 0:01:05.1]} 26. h4 {[%clk
0:02:18.6]} 26... a5 {[%clk 0:00:52.2]} 27. g4 {[%clk 0:02:15.3]} 27... Rf8
{[%clk 0:00:44.1]} 28. h5 {[%clk 0:02:13.1]} 28... gxh5 {[%clk 0:00:21.8]} 29.
gxh5 {[%clk 0:02:14]} 29... h6 {[%clk 0:00:22.2]} 30. Rd7 {[%clk 0:02:11.8]}
30... Rf6 {[%clk 0:00:19.2]} 31. Bc2 {[%clk 0:02:12]} 31... Kg8 {[%clk
0:00:18.7]} 32. Bg6 {[%clk 0:02:11.6]} 32... Kf8 {[%clk 0:00:17.7]} 33. a4
{[%clk 0:02:09.9]} 33... b5 {[%clk 0:00:16.8]} 34. Ra7 {[%clk 0:02:07.6]} 34...
Nc4 {[%clk 0:00:11.3]} 35. b3 {[%clk 0:02:06]} 35... Nd2 {[%clk 0:00:07.6]} 36.
Rxa5 {[%clk 0:02:04]} 36... Nxb3 {[%clk 0:00:07.3]} 37. Ra8+ {[%clk 0:02:04.1]}
37... Ke7 {[%clk 0:00:07.2]} 38. a5 {[%clk 0:02:04.1]} 38... Nxd4 {[%clk
0:00:04.6]} 39. a6 {[%clk 0:02:04]} 39... b4 {[%clk 0:00:04.9]} 40. a7 {[%clk
0:02:04]} 1-0